bitfinex/quotes_BTCUSD_20250423
["timestamp","ask_amount","ask_price","bid_price","bid_amount"]
[1745374713799,0.0067246,92794.0,92785.0,0.112487]
[1745374713951,0.01750115,92794.0,92785.0,0.112487]
[1745374714161,0.01077655,92794.0,92785.0,0.112487]
[1745374714394,0.00671761,92793.0,92785.0,0.114487]
[1745374714589,0.00671761,92793.0,92785.0,0.002]
[1745374714796,0.00671761,92793.0,92786.0,0.595123]
[1745374715150,0.01077586,92800.0,92788.0,0.01077725]
[1745374715348,0.01077586,92800.0,92789.0,1.377662]
[1745374715683,0.01077446,92812.0,92799.0,0.01077597]
[1745374715879,0.01077458,92811.0,92799.0,0.01077597]
[1745374716091,0.00683309,92807.0,92798.0,0.23159771]
[1745374716292,0.01077528,92805.0,92796.0,0.0478]
[1745374716492,0.01762688,92806.0,92797.0,0.44561]
[1745374716722,0.00683775,92804.0,92797.0,0.41561]
[1745374716909,0.00684473,92805.0,92801.0,0.22628947]
[1745374717238,0.00687242,92803.0,92799.0,0.01077597]
[1745374717441,0.00014022,92812.0,92804.0,0.01077539]
[1745374717704,0.002,92808.0,92806.0,0.01077516]
[1745374718142,0.00014022,92812.0,92809.0,0.01077481]
[1745374718341,0.00014022,92812.0,92810.0,1.415536]
[1745374719341,0.00014022,92812.0,92810.0,0.813861]
[1745374719591,0.00014022,92812.0,92809.0,0.05777481]
[1745374719801,0.00014022,92812.0,92810.0,0.835431]
[1745374720263,0.00014022,92812.0,92810.0,0.401096]
[1745374720454,0.00314022,92812.0,92809.0,0.01077481]
[1745374720643,0.00314022,92812.0,92806.0,0.01077516]
[1745374720831,0.00314022,92812.0,92808.0,0.01077493]
[1745374721088,0.00314022,92812.0,92807.0,0.01077504]
[1745374721227,0.00314022,92812.0,92809.0,0.01077481]
[1745374721434,0.00014022,92812.0,92810.0,0.252748]
[1745374721670,0.00214022,92812.0,92810.0,0.252748]
[1745374723217,0.00214022,92812.0,92810.0,0.226929]
[1745374723436,0.00214022,92812.0,92809.0,0.01077481]
[1745374723611,0.00214022,92812.0,92810.0,0.285929]
[1745374723817,0.00014022,92812.0,92810.0,0.285929]
[1745374724017,0.00014022,92812.0,92809.0,0.01077481]
[1745374724305,0.00314022,92812.0,92809.0,0.01077481]
[1745374724506,0.00314022,92812.0,92693.0,0.2319043]
[1745374724507,0.01077493,92808.0,92798.0,0.01077609]
[1745374724722,0.00314022,92812.0,92796.0,0.01077632]
[1745374724723,0.01077481,92809.0,92796.0,0.01077632]
[1745374724915,0.01077458,92811.0,92800.0,0.01077586]
[1745374725126,0.00709619,92808.0,92799.0,0.01077597]
[1745374725371,0.00474011,92810.0,92802.0,0.01077562]
[1745374725579,0.00703678,92807.0,92802.0,0.01077562]
[1745374725788,0.01091468,92812.0,92801.0,0.01077574]
[1745374726008,0.01077458,92811.0,92799.0,0.01077597]
[1745374726204,0.01783956,92811.0,92800.0,0.01077586]
[1745374726584,0.01783956,92811.0,92801.0,0.01077574]
[1745374726955,0.00706498,92811.0,92801.0,0.01077574]
[1745374727155,0.01783956,92811.0,92800.0,0.01077586]
[1745374727356,0.01783956,92811.0,92801.0,0.01077574]
[1745374727589,0.00706498,92811.0,92801.0,0.01077574]
[1745374727798,0.01783956,92811.0,92801.0,0.01077574]
[1745374729140,0.00706498,92811.0,92801.0,0.01077574]
[1745374729338,0.00706498,92811.0,92799.0,0.01077597]
[1745374729339,0.0107747,92810.0,92799.0,0.01077597]
[1745374729547,0.01077481,92809.0,92799.0,0.01077597]
[1745374729749,0.01782582,92809.0,92799.0,0.01077597]
[1745374729901,0.00705101,92809.0,92799.0,0.01077597]
[1745374730112,0.00705101,92809.0,92800.0,0.01077586]
[1745374731431,0.00705101,92809.0,92801.0,0.01077574]
[1745374731600,0.00705101,92809.0,92802.0,0.01077562]
[1745374731841,0.01091468,92812.0,92801.0,0.01077574]
[1745374732025,0.01091468,92812.0,92802.0,0.01077562]
[1745374732243,0.00706498,92811.0,92801.0,0.01077574]
[1745374732549,0.01783956,92811.0,92800.0,0.01077586]
[1745374732801,0.01783956,92811.0,92801.0,0.01077574]
[1745374734422,0.01783956,92811.0,92799.0,0.01077597]
[1745374734821,0.00706498,92811.0,92804.0,0.01077539]
[1745374734993,0.00706498,92811.0,92801.0,0.01077574]
[1745374735191,0.00706498,92811.0,92802.0,0.01077562]
[1745374735608,0.00706498,92811.0,92803.0,0.01077551]
[1745374735816,0.00706498,92811.0,92802.0,0.01077562]
[1745374736021,0.00706498,92811.0,92803.0,0.01077551]
[1745374736384,0.00706498,92811.0,92802.0,0.01077562]
[1745374736585,0.00706498,92811.0,92801.0,0.01077574]
[1745374737007,0.00706498,92811.0,92802.0,0.01077562]
[1745374737392,0.01091468,92812.0,92802.0,0.01077562]
[1745374738419,0.00014022,92812.0,92802.0,0.01077562]
[1745374738630,0.01077458,92811.0,92800.0,0.2262931]
[1745374738984,0.00705799,92810.0,92800.0,0.2262931]
[1745374739216,0.01783269,92810.0,92798.0,0.23159771]
[1745374739440,0.00705799,92810.0,92800.0,0.01077586]
[1745374740176,0.01783269,92810.0,92799.0,0.01077597]
[1745374740381,0.01077481,92809.0,92798.0,0.001]
[1745374740660,0.0463,92808.0,92800.0,0.22082162]
[1745374740889,0.0463,92808.0,92794.0,0.21552988]
[1745374740890,0.21551956,92799.0,92790.0,0.22082162]
[1745374741094,0.00699548,92808.0,92807.0,0.0908]
[1745374741312,0.17569168,92836.0,92821.0,0.01077342]
[1745374741524,0.01077203,92833.0,92821.0,0.01077342]
[1745374741731,0.01077203,92833.0,92822.0,0.0107733]
[1745374741940,0.01077203,92833.0,92821.0,0.01077342]
[1745374742163,0.01077203,92833.0,92822.0,0.0107733]
[1745374742641,0.01077214,92832.0,92821.0,0.01077342]
[1745374742843,0.01077203,92833.0,92822.0,0.0107733]
[1745374743179,0.01077203,92833.0,92822.0,0.02525807]
[1745374743416,0.11907484,92835.0,92823.0,0.01077319]
[1745374743591,0.001,92833.0,92825.0,0.01077295]
[1745374743823,0.001,92833.0,92824.0,0.01077307]
[1745374744039,0.001,92833.0,92827.0,0.01077272]
[1745374744262,0.11632,92836.0,92827.0,0.01077272]
[1745374744485,0.11632,92836.0,92831.0,0.01077226]
[1745374744695,0.001,92835.0,92831.0,0.01077226]
[1745374745108,0.001,92835.0,92830.0,0.01077237]
[1745374745330,0.001,92835.0,92829.0,0.01077249]
[1745374745535,0.001,92835.0,92830.0,0.126626]
[1745374745756,0.11632,92836.0,92831.0,0.01077226]
[1745374745969,0.35512,92841.0,92831.0,0.01077226]
[1745374746184,0.005,92836.0,92831.0,0.01077226]
[1745374746409,0.005,92836.0,92831.0,0.22082162]
[1745374746629,0.01077145,92838.0,92831.0,0.22082162]
[1745374746842,0.01077133,92839.0,92831.0,0.22082162]
[1745374747102,0.002,92836.0,92831.0,0.22082162]
[1745374747562,0.01077191,92834.0,92831.0,0.22082162]
[1745374747763,0.002,92836.0,92826.0,0.01077284]
[1745374747902,0.01077156,92837.0,92825.0,0.01077295]
[1745374748102,0.01077168,92836.0,92824.0,0.23159469]
[1745374748351,0.05967226,92831.0,92824.0,0.22082162]
[1745374748585,0.0489,92831.0,92824.0,0.22082162]
[1745374750382,0.26434675,92831.0,92824.0,0.22082162]
[1745374750578,0.01077272,92827.0,92824.0,0.22082162]
[1745374750847,0.01077272,92827.0,92822.0,0.01462565]
[1745374751216,0.01077307,92824.0,92817.0,0.22082162]
[1745374751582,0.0107733,92822.0,92817.0,0.22082162]
[1745374751963,0.01077319,92823.0,92817.0,0.22082162]
[1745374752141,0.01077342,92821.0,92817.0,0.22082162]
[1745374752546,0.0107733,92822.0,92817.0,0.22082162]
[1745374752761,0.01077319,92823.0,92817.0,0.22082162]
[1745374753795,0.01077354,92820.0,92817.0,0.2350331]
[1745374754003,0.22624434,92820.0,92817.0,0.01421148]
[1745374754436,0.01077342,92821.0,92810.0,0.22082162]
[1745374755006,0.01077354,92820.0,92810.0,0.22082162]
[1745374755626,0.01077354,92820.0,92810.0,0.22182162]
[1745374755928,0.001,92823.0,92810.0,0.23646007]
[1745374756156,0.10830305,92822.0,92810.0,0.23646007]
[1745374756311,0.01077354,92820.0,92810.0,0.23646007]
[1745374756716,0.01077354,92820.0,92810.0,0.23546007]
[1745374756916,0.01177354,92820.0,92810.0,0.23546007]
[1745374757151,0.01177354,92820.0,92810.0,0.23646007]
[1745374757451,0.11907635,92822.0,92810.0,0.23646007]
[1745374757650,0.01077354,92820.0,92810.0,0.23646007]
[1745374757852,0.01077354,92820.0,92810.0,0.23746007]
[1745374758075,0.01077354,92820.0,92810.0,0.01663845]
[1745374758285,0.11907635,92822.0,92810.0,0.23646007]
[1745374758550,0.01077354,92820.0,92810.0,0.23646007]
[1745374758732,0.01077354,92820.0,92810.0,0.23746007]
[1745374758944,0.10830305,92822.0,92810.0,0.23746007]
[1745374759360,0.0969,92831.0,92812.0,0.22082162]
[1745374759587,0.01077133,92839.0,92824.0,0.01077307]
[1745374759815,0.0465,92840.0,92827.0,0.01077272]
[1745374760235,0.0465,92840.0,92829.0,0.21544991]
[1745374760455,0.0465,92840.0,92827.0,0.01077272]
[1745374760675,0.0465,92840.0,92828.0,0.679878]
[1745374761100,0.4038942,92830.0,92828.0,0.679878]
[1745374761541,0.3998942,92830.0,92828.0,0.679878]
[1745374761970,0.4038942,92830.0,92828.0,0.679878]
[1745374762245,0.004,92830.0,92827.0,0.22622565]
[1745374762500,0.004,92830.0,92828.0,0.777473]
[1745374762710,0.004,92830.0,92828.0,0.647473]
[1745374762930,0.004,92830.0,92827.0,0.01077272]
[1745374763156,0.0465,92840.0,92828.0,0.21994161]
[1745374763401,0.0465,92840.0,92832.0,0.01077214]
[1745374763848,0.0465,92840.0,92831.0,0.01077226]
[1745374764936,0.0485,92840.0,92829.0,0.01077249]
[1745374765150,0.0485,92840.0,92835.0,0.01077179]
[1745374765368,0.0485,92840.0,92836.0,0.01077168]
[1745374765610,0.0485,92840.0,92834.0,0.01077191]
[1745374765788,0.0485,92840.0,92833.0,0.01077203]
[1745374766046,0.002,92840.0,92833.0,0.01077203]
[1745374766268,0.0001403,92841.0,92832.0,0.01077214]
[1745374766479,0.001,92840.0,92832.0,0.226213]
[1745374766724,0.001,92840.0,92835.0,0.01077179]
[1745374766923,0.0001403,92841.0,92834.0,0.01077191]
[1745374767293,0.002,92840.0,92835.0,0.01077179]
[1745374767509,0.002,92840.0,92836.0,0.682883]
[1745374767702,0.0001403,92841.0,92838.0,0.01077145]
[1745374767992,0.0001403,92841.0,92838.0,0.22620019]
[1745374768207,0.003,92840.0,92839.0,0.535742]
[1745374768669,0.003,92840.0,92839.0,0.432792]
[1745374769293,0.0001403,92841.0,92840.0,0.21542438]
[1745374769737,0.0041403,92841.0,92840.0,0.21542438]
[1745374769955,0.0041403,92841.0,92840.0,0.62506038]
[1745374770163,0.0001403,92841.0,92840.0,0.66901838]
[1745374770407,0.0011403,92841.0,92840.0,0.60915338]
[1745374770611,0.0011403,92841.0,92840.0,0.53564338]
[1745374770612,0.00095406,92841.0,92840.0,0.53564338]
[1745374770809,0.0004245,92848.0,92843.0,0.01077087]
[1745374770947,0.00089236,92846.0,92843.0,0.01077087]
[1745374771780,0.00089236,92846.0,92844.0,0.2154151]
[1745374772757,0.00189236,92846.0,92844.0,0.2154151]
[1745374773263,0.00089236,92846.0,92844.0,0.2154151]
[1745374773481,0.00189236,92846.0,92844.0,0.2154151]
[1745374776033,0.10830305,92845.0,92832.0,0.21544291]
[1745374776297,0.0457,92844.0,92837.0,0.01077156]
[1745374776526,0.15440305,92845.0,92836.0,0.01077168]
[1745374776748,0.00189236,92846.0,92838.0,0.01077145]
[1745374776945,0.00089236,92846.0,92839.0,0.32746033]
[1745374777147,0.00089236,92846.0,92840.0,0.296078]
[1745374777356,0.00089236,92846.0,92838.0,0.01077145]
[1745374777574,0.00089236,92846.0,92839.0,0.12084233]
[1745374777788,0.00089236,92846.0,92838.0,0.01077145]
[1745374777999,0.00089236,92846.0,92839.0,0.100522]
[1745374778197,0.00089236,92846.0,92838.0,0.01077145]
[1745374778897,0.00089236,92846.0,92837.0,0.01177156]
[1745374779349,0.00089236,92846.0,92839.0,0.001]
[1745374779534,0.00089236,92846.0,92840.0,0.374656]
[1745374779751,0.00089236,92846.0,92840.0,0.236836]
[1745374779943,0.00089236,92846.0,92839.0,0.308464]
[1745374780782,0.00089236,92846.0,92838.0,0.001]
[1745374780997,0.00089236,92846.0,92838.0,0.01177145]
[1745374781190,0.00089236,92846.0,92838.0,0.001]
[1745374781656,0.00089236,92846.0,92837.0,0.001]
[1745374781824,0.00089236,92846.0,92838.0,0.01077145]
[1745374782248,0.00089236,92846.0,92837.0,0.01077156]
[1745374782409,0.00089236,92846.0,92838.0,0.001]
[1745374783063,0.00089236,92846.0,92838.0,0.002]
[1745374783269,0.00089236,92846.0,92838.0,0.01277145]
[1745374783703,0.00089236,92846.0,92838.0,0.01177145]
[1745374784373,0.00089236,92846.0,92836.0,0.05461463]
[1745374784580,0.00089236,92846.0,92837.0,0.25731556]
[1745374784777,0.00089236,92846.0,92836.0,0.06538631]
[1745374784978,0.00089236,92846.0,92837.0,0.226509]
[1745374785180,0.00089236,92846.0,92836.0,0.06538631]
[1745374785416,0.00089236,92846.0,92836.0,0.05561463]
[1745374785617,0.00089236,92846.0,92836.0,0.06738631]
[1745374785824,0.00089236,92846.0,92836.0,0.06538631]
[1745374786027,0.00089236,92846.0,92837.0,0.182532]
[1745374786232,0.00089236,92846.0,92837.0,0.01277156]
[1745374786429,0.00089236,92846.0,92837.0,0.01177156]
[1745374786639,0.00089236,92846.0,92838.0,0.01077145]
[1745374786839,0.00089236,92846.0,92836.0,0.28181869]
[1745374787050,0.00089236,92846.0,92837.0,0.176781]
[1745374787247,0.00089236,92846.0,92838.0,0.01077145]
[1745374787779,0.00089236,92846.0,92839.0,0.01077133]
[1745374788029,0.00089236,92846.0,92843.0,0.01077087]
[1745374788247,0.00089236,92846.0,92844.0,0.2154151]
[1745374788470,0.00089236,92846.0,92843.0,0.01077087]
[1745374789121,0.00089236,92846.0,92844.0,0.2154151]
[1745374789757,0.00259537,92846.0,92843.0,0.01077087]
[1745374791252,0.00059537,92846.0,92844.0,0.53157]
[1745374791433,0.00159537,92846.0,92844.0,0.72361793]
[1745374791659,0.00159537,92846.0,92845.0,0.61113778]
[1745374791869,0.00159537,92846.0,92845.0,0.456201]
[1745374792121,0.00059537,92846.0,92844.0,0.591614]
[1745374792340,0.00159537,92846.0,92845.0,0.21541278]
[1745374792581,0.00159537,92846.0,92845.0,0.456201]
[1745374792798,0.00059537,92846.0,92845.0,0.21541278]
[1745374793036,0.00059537,92846.0,92845.0,1.76857865]
[1745374793264,0.00259537,92846.0,92845.0,1.72318278]
[1745374793473,0.00259537,92846.0,92845.0,1.01028078]
[1745374794375,0.00059537,92846.0,92845.0,0.67512678]
[1745374794596,0.00059537,92846.0,92845.0,0.58674378]
[1745374794823,0.0004248,92865.0,92862.0,0.21537334]
[1745374795042,0.0004248,92865.0,92862.0,1.98836934]
[1745374795043,0.01133987,92863.0,92862.0,1.98836934]
[1745374795257,0.0004248,92878.0,92875.0,0.01076716]
[1745374795469,0.00056499,92878.0,92877.0,0.21533856]
[1745374796355,0.00056499,92878.0,92877.0,1.49982756]
[1745374796573,0.00056499,92878.0,92877.0,4.05162856]
[1745374796815,0.00056499,92878.0,92877.0,3.76738456]
[1745374797071,0.0486,92903.0,92888.0,0.21531306]
[1745374797296,0.0486,92903.0,92888.0,0.63222006]
[1745374797513,0.001,92909.0,92888.0,1.30676657]
[1745374797718,0.001,92909.0,92888.0,0.22922257]
[1745374798148,0.001,92909.0,92888.0,0.97153357]
[1745374798360,0.001,92909.0,92888.0,1.09423357]
[1745374798573,0.001,92909.0,92888.0,0.99388357]
[1745374798788,0.003,92889.0,92888.0,0.99388357]
[1745374798998,0.003,92889.0,92888.0,0.99488357]
[1745374799426,0.003,92889.0,92888.0,0.77957051]
[1745374799972,0.00278607,92889.0,92888.0,0.77957051]
[1745374800195,0.00278607,92889.0,92888.0,0.94603657]
[1745374800412,0.00278607,92889.0,92888.0,0.39573957]
[1745374803413,0.00278607,92889.0,92888.0,0.50404262]
[1745374803846,0.12732,92899.0,92893.0,0.21530147]
[1745374804274,0.12732,92899.0,92893.0,1.14525047]
[1745374804742,0.001,92909.0,92893.0,1.14525047]
[1745374804956,0.00307,92894.0,92893.0,0.97468247]
[1745374805171,0.00307,92894.0,92893.0,0.759381]
[1745374805388,0.00307,92894.0,92893.0,0.221908]
[1745374805600,7e-05,92894.0,92893.0,0.003]
[1745374805812,7e-05,92894.0,92893.0,0.335793]
[1745374806024,7e-05,92894.0,92893.0,0.244365]
[1745374806244,7e-05,92894.0,92893.0,0.228399]
[1745374806441,7e-05,92894.0,92893.0,0.225399]
[1745374806950,7e-05,92894.0,92893.0,0.228399]
[1745374807166,7e-05,92894.0,92893.0,0.149901]
[1745374807399,7e-05,92894.0,92893.0,0.148901]
[1745374807613,7e-05,92894.0,92893.0,0.150901]
[1745374808030,7e-05,92894.0,92893.0,0.148901]
[1745374808257,7e-05,92894.0,92893.0,0.14805382]
[1745374808494,7e-05,92894.0,92893.0,0.149901]
[1745374808708,7e-05,92894.0,92893.0,0.147901]
[1745374808911,7e-05,92894.0,92893.0,0.145901]
[1745374809118,7e-05,92894.0,92893.0,0.150901]
[1745374809326,7e-05,92894.0,92893.0,0.470289]
[1745374809567,7e-05,92894.0,92893.0,0.005]
[1745374809782,0.001,92909.0,92894.0,0.01076495]
[1745374809992,0.00114016,92909.0,92899.0,0.22082162]
[1745374810196,0.00608529,92908.0,92900.0,0.298124]
[1745374810407,0.00114016,92909.0,92900.0,0.222575]
[1745374810621,0.00114016,92909.0,92899.0,0.22082162]
[1745374811042,0.00691375,92908.0,92899.0,0.22082162]
[1745374811265,0.01076356,92906.0,92892.0,0.07]
[1745374811474,0.01076368,92905.0,92892.0,0.07]
[1745374811671,0.01765652,92905.0,92893.0,0.003]
[1745374812107,0.01765652,92905.0,92899.0,0.001]
[1745374812358,0.01076379,92904.0,92892.0,0.07]
[1745374812577,0.0107653,92891.0,92888.0,0.01390951]
[1745374812798,0.15540305,92890.0,92870.0,0.22082162]
[1745374813107,0.01076576,92887.0,92871.0,0.323894]
[1745374813308,0.0457,92884.0,92870.0,0.01366202]
[1745374813540,0.05646611,92884.0,92871.0,0.15866]
[1745374813744,0.05646611,92884.0,92860.0,0.00826169]
[1745374813745,0.21535937,92869.0,92860.0,0.00826169]
[1745374813950,0.01076692,92877.0,92870.0,0.01396649]
[1745374814156,0.01076716,92875.0,92859.0,0.22082162]
[1745374814361,0.01076646,92881.0,92871.0,0.002]
[1745374814564,0.10830305,92880.0,92871.0,0.002]
[1745374814774,0.10830305,92880.0,92865.0,0.22082162]
[1745374814978,0.10830305,92880.0,92866.0,0.644654]
[1745374815184,0.001,92877.0,92866.0,0.644654]
[1745374815395,0.001,92877.0,92866.0,0.602388]
[1745374815588,0.001,92877.0,92867.0,0.259559]
[1745374815830,0.001,92877.0,92866.0,0.272522]
[1745374816017,0.001,92877.0,92865.0,0.00114019]
[1745374816216,0.001,92877.0,92865.0,0.00014019]
[1745374816439,0.10830305,92880.0,92865.0,0.00014019]
[1745374816601,0.10830305,92880.0,92867.0,0.22082162]
[1745374816807,0.10930305,92880.0,92867.0,0.22082162]
[1745374817010,0.12006963,92880.0,92867.0,0.22082162]
[1745374817229,0.01076704,92876.0,92865.0,0.00014019]
[1745374817436,0.11906963,92880.0,92866.0,0.129706]
[1745374817634,0.001,92877.0,92866.0,0.129706]
[1745374817844,0.001,92877.0,92867.0,0.22082162]
[1745374818040,0.10830305,92880.0,92867.0,0.22082162]
[1745374818244,0.001,92876.0,92867.0,0.22082162]
[1745374819403,0.001,92876.0,92867.0,0.22182162]
[1745374819583,0.11906963,92880.0,92867.0,0.22082162]
[1745374819781,0.001,92877.0,92867.0,0.22182162]
[1745374820267,0.00664486,92876.0,92867.0,0.22182162]
[1745374820758,0.00764486,92876.0,92867.0,0.22182162]
[1745374820973,0.001,92876.0,92867.0,0.22182162]
[1745374821184,0.00663789,92875.0,92867.0,0.22182162]
[1745374821913,0.00663789,92875.0,92867.0,0.22082162]
[1745374822123,0.00663789,92875.0,92867.0,0.22182162]
[1745374822551,0.00663789,92875.0,92867.0,0.22082162]
[1745374822767,0.00663789,92875.0,92867.0,0.22182162]
[1745374822967,0.002,92875.0,92867.0,0.22182162]
[1745374823167,0.00663091,92874.0,92867.0,0.22182162]
[1745374824567,0.11906963,92880.0,92867.0,0.22182162]
[1745374824797,0.00640256,92873.0,92867.0,0.22182162]
[1745374824965,0.002,92874.0,92867.0,0.22082162]
[1745374825183,0.002,92874.0,92867.0,0.22182162]
[1745374825383,0.00640256,92873.0,92868.0,0.720869]
[1745374825600,0.00640256,92873.0,92869.0,0.486518]
[1745374825803,0.002,92874.0,92868.0,0.514793]
[1745374826021,0.11906963,92880.0,92868.0,0.514793]
[1745374826233,0.12106963,92880.0,92868.0,0.514793]
[1745374826459,0.01721109,92879.0,92868.0,0.514793]
[1745374826665,0.11474745,92879.0,92868.0,0.514793]
[1745374826812,0.12551414,92879.0,92869.0,0.70942862]
[1745374827033,0.003,92874.0,92869.0,0.22082162]
[1745374827384,0.00623086,92873.0,92869.0,0.22082162]
[1745374828064,0.12206974,92879.0,92865.0,0.00014019]
[1745374828269,0.0062225,92872.0,92866.0,0.57341]
[1745374828469,0.12206974,92879.0,92866.0,0.57341]
[1745374828842,0.00626434,92878.0,92866.0,0.57341]
[1745374829086,0.00626434,92878.0,92867.0,0.555464]
[1745374829229,0.00626434,92878.0,92867.0,0.01076808]
[1745374829427,0.003,92879.0,92868.0,1.666913]
[1745374829631,0.0457,92884.0,92869.0,0.22082162]
[1745374829842,0.003,92873.0,92870.0,0.807753]
[1745374830260,0.003,92873.0,92870.0,0.01076773]
[1745374830628,0.13172,92888.0,92874.0,0.05836727]
[1745374830840,0.003,92884.0,92875.0,1.45040924]
[1745374831052,0.003,92884.0,92876.0,0.455089]
[1745374831302,0.003,92884.0,92875.0,0.44164324]
[1745374831303,0.003,92884.0,92877.0,0.133074]
[1745374831536,0.003,92884.0,92876.0,0.126924]
[1745374831742,0.003,92884.0,92870.0,0.22082162]
[1745374831743,0.0489,92883.0,92870.0,0.22082162]
[1745374831953,0.0489,92883.0,92871.0,0.426922]
[1745374832167,0.01076658,92880.0,92859.0,0.08376865]
[1745374832455,0.05966623,92883.0,92870.0,0.22082162]
[1745374832456,0.001,92873.0,92870.0,0.22082162]
[1745374832653,0.001,92873.0,92871.0,0.113588]
[1745374832864,0.0489,92883.0,92866.0,0.205887]
[1745374833070,0.0489,92883.0,92870.0,0.002]
[1745374833256,0.0499,92883.0,92873.0,0.22082162]
[1745374833642,0.05966623,92883.0,92873.0,0.22082162]
[1745374834193,0.0489,92883.0,92873.0,0.22082162]
[1745374835530,0.0489,92883.0,92865.0,0.00014019]
[1745374835742,0.0489,92883.0,92873.0,0.22082162]
[1745374835947,0.0499,92883.0,92873.0,0.22182162]
[1745374836361,0.0489,92883.0,92873.0,0.22182162]
[1745374837702,0.00636809,92882.0,92873.0,0.22182162]
[1745374837920,0.01713443,92882.0,92873.0,0.001]
[1745374838132,0.00636809,92882.0,92873.0,0.001]
[1745374838538,0.00636809,92882.0,92870.0,0.22082162]
[1745374839016,0.00736809,92882.0,92873.0,0.001]
[1745374839420,0.00636809,92882.0,92873.0,0.001]
[1745374839855,0.00736809,92882.0,92873.0,0.001]
[1745374840366,0.00636809,92882.0,92873.0,0.001]
[1745374840581,0.00736809,92882.0,92873.0,0.001]
[1745374840799,0.00736809,92882.0,92874.0,0.542807]
[1745374841028,0.00736809,92882.0,92875.0,0.7097204]
[1745374841243,0.00736809,92882.0,92876.0,1.22896304]
[1745374841457,0.00736809,92882.0,92877.0,1.252601]
[1745374841458,0.001,92882.0,92877.0,1.252601]
[1745374841671,0.001,92882.0,92878.0,0.668876]
[1745374841881,0.001,92882.0,92879.0,0.466182]
[1745374842080,0.001,92882.0,92875.0,0.586508]
[1745374842289,0.05586437,92899.0,92875.0,0.59727516]
[1745374842505,0.10830305,92898.0,92888.0,0.22082162]
[1745374842722,0.01076461,92897.0,92888.0,0.22082162]
[1745374842947,0.10830305,92896.0,92888.0,0.22082162]
[1745374843146,0.11476693,92896.0,92888.0,0.22082162]
[1745374843352,0.11476693,92896.0,92874.0,0.05846727]
[1745374843353,0.12553165,92896.0,92874.0,0.05846727]
[1745374843556,0.12553165,92896.0,92880.0,0.22082162]
[1745374843557,0.11476693,92896.0,92880.0,0.22082162]
[1745374843760,0.11476693,92896.0,92881.0,0.123139]
[1745374843967,0.01076484,92895.0,92881.0,0.123139]
[1745374844138,0.12553165,92896.0,92881.0,0.123139]
[1745374844344,0.00510072,92894.0,92881.0,0.123139]
[1745374844551,0.10830305,92896.0,92881.0,0.123139]
[1745374844552,0.00509607,92893.0,92881.0,0.123139]
[1745374844763,0.00509607,92893.0,92881.0,0.13390546]
[1745374844963,0.005,92897.0,92884.0,0.01076611]
[1745374845160,0.003,92897.0,92886.0,0.22082162]
[1745374845374,0.3998942,92903.0,92887.0,0.554312]
[1745374845573,0.3998942,92903.0,92893.0,0.22082162]
[1745374845776,0.001,92896.0,92893.0,0.22082162]
[1745374846115,0.39551898,92903.0,92886.0,0.22082162]
[1745374846318,0.01076414,92901.0,92884.0,0.714012]
[1745374846518,0.00643827,92902.0,92890.0,0.22082162]
[1745374846854,0.00642433,92900.0,92890.0,0.22082162]
[1745374847067,0.10830305,92900.0,92890.0,0.22082162]
[1745374847268,0.00641736,92899.0,92890.0,0.22082162]
[1745374848226,0.001,92896.0,92890.0,0.22082162]
[1745374848430,0.00641039,92898.0,92890.0,0.22082162]
[1745374848630,0.10830305,92900.0,92890.0,0.22082162]
[1745374848837,0.00640342,92897.0,92890.0,0.22082162]
[1745374849053,0.00641736,92899.0,92890.0,0.22082162]
[1745374849269,0.00639645,92896.0,92890.0,0.22082162]
[1745374849488,0.10830305,92900.0,92890.0,0.22082162]
[1745374849709,0.00638948,92895.0,92890.0,0.22082162]
[1745374849920,0.10830305,92900.0,92880.0,0.45240982]
[1745374850161,0.11906731,92900.0,92881.0,0.349475]
[1745374850362,0.00641736,92899.0,92879.0,0.01076669]
[1745374850605,0.00641736,92899.0,92890.0,0.22082162]
[1745374851304,0.00641736,92899.0,92889.0,0.22082162]
[1745374852673,0.00741736,92899.0,92889.0,0.22082162]
[1745374853560,0.00741736,92899.0,92880.0,0.22082162]
[1745374853778,0.00741736,92899.0,92889.0,0.22082162]
[1745374854469,0.00641736,92899.0,92881.0,0.00796792]
[1745374854691,0.00641736,92899.0,92889.0,0.22082162]
[1745374855133,0.00641736,92899.0,92880.0,0.22182162]
[1745374855375,0.0474,92898.0,92881.0,0.328227]
[1745374855583,0.00540608,92897.0,92888.0,0.22082162]
[1745374856224,0.01076565,92888.0,92862.0,0.0475]
[1745374856448,0.0484,92881.0,92880.0,0.003]
[1745374856666,0.15670305,92881.0,92880.0,0.001]
[1745374856888,0.16204277,92881.0,92880.0,0.001]
[1745374858031,0.82309104,92881.0,92880.0,0.001]
[1745374858266,0.01076681,92878.0,92870.0,0.22082162]
[1745374858515,0.11906997,92877.0,92870.0,0.22082162]
[1745374858730,0.11355837,92877.0,92870.0,0.22082162]
[1745374859629,0.01076704,92876.0,92867.0,0.22082162]
[1745374859830,0.10830305,92875.0,92867.0,0.22082162]
[1745374860060,0.11354907,92875.0,92867.0,0.22082162]
[1745374861015,0.11354907,92875.0,92867.0,0.22096181]
[1745374862203,0.11454907,92875.0,92867.0,0.22096181]
[1745374862414,0.11554907,92875.0,92867.0,0.22096181]
[1745374862897,0.00724602,92875.0,92867.0,0.00014019]
[1745374863107,0.00724602,92875.0,92872.0,0.0107675]
[1745374863340,0.39451898,92900.0,92889.0,0.01076553]
[1745374863588,0.0004246,92916.0,92901.0,0.01076414]
[1745374863832,0.0004246,92916.0,92905.0,0.01076368]
[1745374864057,0.39451898,92918.0,92908.0,0.22082162]
[1745374864058,0.3905689,92918.0,92908.0,0.22082162]
[1745374864283,0.0492,92926.0,92908.0,0.22082162]
[1745374864498,0.00610984,92917.0,92909.0,0.121293]
[1745374864722,0.0492,92926.0,92909.0,0.121293]
[1745374864964,0.0492,92926.0,92907.0,0.22082162]
[1745374865201,0.00056469,92920.0,92909.0,0.01337119]
[1745374865457,0.00056469,92920.0,92910.0,1.97429134]
[1745374865721,0.00056469,92920.0,92911.0,1.164072]
[1745374865966,0.00056469,92920.0,92912.0,0.402864]
[1745374866188,0.00056469,92920.0,92911.0,0.368976]
[1745374866400,0.00056469,92920.0,92907.0,0.01076345]
[1745374866401,0.00056469,92920.0,92912.0,0.264846]
[1745374866621,0.00056469,92920.0,92910.0,0.22082162]
[1745374866845,0.0004244,92927.0,92909.0,0.01320008]
[1745374867053,0.0004244,92927.0,92910.0,0.33745062]
[1745374867268,0.0004244,92927.0,92911.0,0.74141898]
[1745374867504,0.0004244,92927.0,92913.0,0.01076275]